fUSD/lending_fUSD_20260401
["ID","MTS","AMOUNT","RATE_DAILY","PERIOD"]
[419204312,1775017897807,-500.0,0.00035181,120]
[419204313,1775017897816,-500.0,0.00035181,120]
[419204314,1775017897826,-800.0,0.00035181,120]
[419204315,1775017897835,-500.0,0.00035181,120]
[419204316,1775017897845,-500.0,0.00035181,120]
[419204317,1775017897854,-500.0,0.00035181,120]
[419204318,1775017897863,-500.0,0.00035181,120]
[419204319,1775017897872,-750.0,0.00035181,120]
[419204320,1775017897882,-855.3568233,0.00035181,120]
[419204321,1775017897892,-377.4698745,0.00035181,120]
[419204322,1775017897901,-500.0,0.00035181,120]
[419204323,1775017897912,-852.6533298,0.00035181,120]
[419204324,1775017897922,-500.0,0.00035181,120]
[419204325,1775017897933,-500.0,0.00035181,120]
[419204326,1775017897943,-500.0,0.00035181,120]
[419204327,1775017897953,-500.0,0.00035181,120]
[419204328,1775017897963,-500.0,0.00035181,120]
[419204329,1775017897973,-250.2854573,0.00035181,120]
[419204330,1775017897985,-908.3787452,0.00035181,120]
[419204331,1775017897996,-500.0,0.00035181,120]
[419204332,1775017898006,-500.0,0.00035181,120]
[419204333,1775017898016,-855.4955384,0.00035181,120]
[419204334,1775017898026,-500.0,0.00035181,120]
[419204335,1775017898036,-500.0,0.00035181,120]
[419204336,1775017898046,-500.0,0.00035181,120]
[419204337,1775017898056,-500.0,0.00035181,120]
[419204338,1775017898065,-739.2346815,0.00035181,120]
[419204339,1775017898075,-993.10976,0.000352,30]
[419204340,1775017898085,-1192.41067818,0.00035201,2]
[419204341,1775017898095,-151.0,0.00035222,5]
[419204342,1775017898105,-1400.0,0.0003526,2]
[419204343,1775017898115,-1400.0,0.0003526,2]
[419204344,1775017898124,-1389.0,0.0003526,2]
[419204345,1775017898134,-1014.36,0.00035313,120]
[419204346,1775017898143,-200.0,0.00035353,2]
[419204347,1775017898153,-200.0,0.00035353,2]
[419204348,1775017898162,-200.0,0.00035353,2]
[419204349,1775017898171,-200.0,0.00035353,2]
[419204350,1775017898181,-200.0,0.00035353,2]
[419204351,1775017898190,-200.0,0.00035353,2]
[419204352,1775017898199,-200.0,0.00035353,2]
[419204353,1775017898209,-200.0,0.00035353,2]
[419204354,1775017898219,-200.0,0.00035353,2]
[419204355,1775017898228,-500.0,0.00035353,2]
[419204356,1775017898238,-500.0,0.00035353,2]
[419204357,1775017898247,-500.0,0.00035353,2]
[419204358,1775017898256,-500.0,0.00035353,2]
[419204359,1775017898265,-500.0,0.00035353,2]
[419204360,1775017898275,-500.0,0.00035353,2]
[419204361,1775017898284,-500.0,0.00035353,2]
[419204362,1775017898293,-500.0,0.00035353,2]
[419204363,1775017898302,-500.0,0.00035353,2]
[419204364,1775017898311,-500.0,0.00035353,2]
[419204365,1775017898322,-500.0,0.00035353,2]
[419204366,1775017898333,-500.0,0.00035353,2]
[419204367,1775017898344,-500.0,0.00035353,2]
[419204368,1775017898353,-500.0,0.00035353,2]
[419204369,1775017898362,-500.0,0.00035353,2]
[419204370,1775017898372,-500.0,0.00035353,2]
[419204371,1775017898381,-500.0,0.00035353,2]
[419204372,1775017898391,-500.0,0.00035353,2]
[419204373,1775017898400,-500.0,0.00035353,2]
[419204374,1775017898410,-500.0,0.00035353,2]
[419204375,1775017898419,-500.0,0.00035353,2]
[419204376,1775017898429,-500.0,0.00035353,2]
[419204377,1775017898438,-500.0,0.00035353,2]
[419204378,1775017898447,-500.0,0.00035353,2]
[419204379,1775017898457,-500.0,0.00035353,2]
[419204380,1775017898467,-500.0,0.00035353,2]
[419204381,1775017898477,-500.0,0.00035353,2]
[419204382,1775017898486,-500.0,0.00035353,2]
[419204383,1775017898496,-500.0,0.00035353,2]
[419204384,1775017898505,-500.0,0.00035353,2]
[419204385,1775017898515,-500.0,0.00035353,2]
[419204386,1775017898525,-500.0,0.00035353,2]
[419204387,1775017898535,-500.0,0.00035353,2]
[419204388,1775017898545,-500.0,0.00035353,2]
[419204389,1775017898555,-500.0,0.00035353,2]
[419204390,1775017898565,-500.0,0.00035353,2]
[419204391,1775017898575,-500.0,0.00035353,2]
[419204392,1775017898586,-500.0,0.00035353,2]
[419204393,1775017898596,-500.0,0.00035353,2]
[419204394,1775017898605,-500.0,0.00035353,2]
[419204395,1775017898615,-500.0,0.00035353,2]
[419204396,1775017898625,-520.0,0.00035353,2]
[419204397,1775017898635,-800.0,0.00035353,13]
[419204398,1775017898646,-800.0,0.00035353,13]
[419204399,1775017898656,-800.0,0.00035353,13]
[419204400,1775017898667,-800.0,0.00035353,13]
[419204401,1775017898678,-800.0,0.00035353,13]
[419204402,1775017898688,-800.0,0.00035353,13]
[419204403,1775017898698,-800.0,0.00035353,13]
[419204404,1775017898709,-800.0,0.00035353,13]
[419204405,1775017898719,-800.0,0.00035353,13]
[419204406,1775017898728,-800.0,0.00035353,13]
[419204407,1775017898738,-800.0,0.00035353,13]
[419204408,1775017898748,-800.0,0.00035353,13]
[419204409,1775017898757,-800.0,0.00035353,13]
[419204410,1775017898766,-800.0,0.00035353,13]
[419204411,1775017898775,-800.0,0.00035353,13]
[419204412,1775017898785,-800.0,0.00035353,13]
[419204413,1775017898794,-800.0,0.00035353,13]
[419204414,1775017898803,-153.0,0.00035388,30]
[419204415,1775017898813,-1076.0,0.00035388,30]
[419204416,1775017898822,-1049.0,0.00035388,30]
[419204417,1775017898831,-993.10976,0.000354,30]
[419204418,1775017898840,-504.0,0.00035407,21]
[419204419,1775017898849,-5062.0,0.0003543,30]
[419204420,1775017898860,-1219.0,0.0003543,30]
[419204421,1775017898870,-571.0,0.0003543,30]
[419204422,1775017898881,-153.94,0.00035432,7]
[419204423,1775017898891,-197.89,0.00035432,7]
[419204424,1775017898900,-154.48263024,0.00035589,120]
[419204425,1775017898910,-789.32,0.000356,120]
[419204426,1775017898921,-993.10976,0.000356,30]
[419204427,1775017898930,-500.0,0.00035609,120]
[419204428,1775017898940,-500.0,0.00035609,120]
[419204429,1775017898950,-1400.0,0.0003561,2]
[419204430,1775017898961,-1400.0,0.0003561,2]
[419204431,1775017898970,-1390.0,0.0003561,2]
[419204432,1775017898981,-200.0,0.00035616,120]
[419204433,1775017898991,-1000.0,0.00035616,120]
[419204434,1775017899000,-500.0,0.00035616,60]
[419204435,1775017899010,-500.0,0.00035616,120]
[419204436,1775017899020,-157.88,0.00035616,2]
[419204437,1775017899030,-1000.0,0.00035616,10]
[419204438,1775017899041,-1000.0,0.00035616,10]
[419204439,1775017899051,-1000.0,0.00035616,10]
[419204440,1775017899061,-1000.0,0.00035616,10]
[419204441,1775017899071,-1000.0,0.00035616,10]
[419204442,1775017899080,-1000.0,0.00035616,10]
[419204443,1775017899089,-1000.0,0.00035616,10]
[419204444,1775017899098,-1000.0,0.00035616,10]
[419204445,1775017899107,-1000.0,0.00035616,10]
[419204446,1775017899116,-1000.0,0.00035616,10]
[419204447,1775017899125,-1000.0,0.00035616,10]
[419204448,1775017899134,-1000.0,0.00035616,10]
[419204449,1775017899143,-1000.0,0.00035616,10]
[419204450,1775017899152,-1000.0,0.00035616,10]
[419204451,1775017899161,-1000.0,0.00035616,10]
[419204452,1775017899170,-1000.0,0.00035616,10]
[419204453,1775017899179,-1000.0,0.00035616,10]
[419204454,1775017899188,-318.0,0.00035616,10]
[419204455,1775017899197,-326.89199663,0.00035616,30]
[419204456,1775017899207,-862.716142,0.00035616,7]
[419204457,1775017899217,-862.716142,0.00035616,7]
[419204458,1775017899226,-862.716142,0.00035616,7]
[419204459,1775017899235,-862.716142,0.00035616,7]
[419204460,1775017899244,-862.716142,0.00035616,7]
[419204461,1775017899253,-862.716142,0.00035616,7]
[419204462,1775017899262,-862.716142,0.00035616,7]
[419204463,1775017899271,-862.716142,0.00035616,7]
[419204464,1775017899281,-862.716142,0.00035616,7]
[419204465,1775017899290,-862.716142,0.00035616,7]
[419204466,1775017899299,-862.716142,0.00035616,7]
[419204467,1775017899309,-862.716142,0.00035616,7]
[419204468,1775017899318,-862.716142,0.00035616,7]
[419204469,1775017899327,-862.716142,0.00035616,7]
[419204470,1775017899336,-862.716142,0.00035616,7]
[419204471,1775017899345,-862.716142,0.00035616,7]
[419204472,1775017899354,-862.716142,0.00035616,7]
[419204473,1775017899363,-862.716142,0.00035616,7]
[419204474,1775017899373,-862.716142,0.00035616,7]
[419204475,1775017899382,-862.716132,0.00035616,7]
[419204476,1775017899391,-1014.36,0.00035625,120]
[419204477,1775017899400,-916.39,0.00035659,2]
[419204478,1775017899410,-993.10976,0.000358,30]
[419204479,1775017899420,-250.0,0.00035893,2]
[419204480,1775017899429,-250.0,0.00035893,2]
[419204481,1775017899439,-242.0,0.00035893,2]
[419204482,1775017899448,-224.90834083,0.00035933,60]
[419204483,1775017899457,-748.04345796,0.00035938,120]
[419204484,1775017900972,-151.0,0.00024658,2]
[419204485,1775017900982,-505.9819762,0.00026085,2]
[419204486,1775017900995,-807.5567738,0.00026085,2]
[419204487,1775017901006,-1000.0,0.00031319,120]
[419204488,1775017901016,-111.5160481,0.00035938,120]
[419204489,1775017901385,-707.0,9.305e-05,2]
[419204490,1775017901395,-459.94901396,9.324e-05,2]
[419204491,1775017901414,-350.07130091,9.324e-05,2]
[419204492,1775017901425,-327.97968513,9.324e-05,2]
[419204493,1775017901434,-1277.0,9.342e-05,2]
[419204494,1775017901444,-2580.77438772,9.86e-05,2]
[419204495,1775017901455,-1717.96447815,0.00011099,2]
[419204496,1775017901467,-20819.90495653,0.00011099,2]
[419204497,1775017901477,-28009.84104347,0.00011099,2]
[419204498,1775017901491,-3532.68729792,0.00011099,2]
[419204499,1775017901503,-917.71767923,0.0001162,2]
[419204500,1775017901512,-1541.735085,0.00024658,2]
[419204501,1775017901521,-151.0,0.00024658,2]
[419204502,1775017901530,-1541.735085,0.00024658,2]
[419204503,1775017901539,-151.0,0.00024658,2]
[419204504,1775017901548,-519.58660385,0.00024658,2]
[419204505,1775017901560,-793.95214615,0.00024658,2]
[419204506,1775017901569,-162.748676,0.00024658,2]
[419204507,1775017901578,-539.294502,0.00024658,2]
[419204508,1775017901587,-485.224635,0.00024658,2]
[419204509,1775017901596,-1313.53875,0.00024658,2]
[419204510,1775017901605,-539.294502,0.00024658,2]
[419204511,1775017901615,-485.224635,0.00024658,2]
[419204512,1775017901725,-1541.735085,0.00024658,2]
[419204513,1775017901735,-151.0,0.00024658,2]
[419204514,1775017901743,-1541.735085,0.00024658,2]
[419204515,1775017901752,-1313.53875,0.00024658,2]
[419204516,1775017901761,-539.294502,0.00024658,2]
[419204517,1775017901770,-485.224635,0.00024658,2]
[419204518,1775017901779,-539.294502,0.00026,2]
[419204519,1775017901788,-151.0,0.00026,2]
[419204520,1775017901796,-485.224635,0.00026085,2]
[419204521,1775017901805,-1541.735085,0.00026085,2]
[419204522,1775017901813,-1313.53875,0.00026085,2]
[419204523,1775017901823,-1000.0,0.00031319,120]
[419204524,1775017901832,-1000.0,0.00031319,120]
[419204525,1775017901841,-1000.0,0.00031319,120]
[419204526,1775017901852,-1000.0,0.00031319,120]
[419204527,1775017901861,-151.0,0.00032999,7]
[419204528,1775017901871,-1313.53875,0.00032999,7]
[419204529,1775017901881,-539.294502,0.00032999,7]
[419204530,1775017901890,-485.224635,0.00032999,7]
[419204531,1775017901899,-151.0,0.00032999,7]
[419204532,1775017901909,-1541.735085,0.00032999,7]
[419204533,1775017901918,-154.80049394,0.00035938,120]
[419204534,1775017901928,-500.0,0.00035999,120]
[419204535,1775017901937,-618.03329484,0.00035999,120]
[419204536,1775017901947,-1530.51664845,0.00036,120]
[419204537,1775017901957,-199.91744556,0.00036,120]
[419204538,1775017901967,-169.62268548,0.00036,120]
[419204539,1775017901976,-153.94,0.00036,7]
[419204540,1775017901987,-150.0,0.00036,7]
[419204541,1775017901997,-150.0,0.00036,7]
[419204542,1775017902008,-197.89,0.00036,7]
[419204543,1775017902018,-150.0,0.00036,7]
[419204544,1775017902027,-184.63982661,0.00036,120]
[419204545,1775017902036,-200.0,0.00036,14]
[419204546,1775017902045,-1001.0,0.00036,7]
[419204547,1775017902054,-993.10976,0.00036,30]
[419204548,1775017902064,-3310.3658,0.00036,7]
[419204549,1775017902074,-205.572827,0.00036,12]
[419204550,1775017902085,-4034.79019497,0.00036016,10]
[419204551,1775017903081,-151.0,0.0001,2]
[419204552,1775017903090,-444.45357403,0.0001,2]
[419204553,1775017903100,-151.0,0.00024658,2]
[419204554,1775017903109,-151.0,0.00024658,2]
[419204555,1775017903119,-539.294502,0.00026,2]
[419204556,1775017903129,-485.224635,0.00026085,2]
[419204557,1775017903138,-1000.0,0.00031319,120]
[419204558,1775017903148,-1000.0,0.00031319,120]
[419204559,1775017903158,-1313.538755,0.00032999,7]
[419204560,1775017903167,-485.224633,0.00032999,7]
[419204561,1775017903177,-965.20980503,0.00036016,10]
[419204562,1775017903187,-1571.0,0.00036039,11]
[419204563,1775017903196,-250.0,0.00036044,39]
[419204564,1775017903206,-5000.0,0.0003608,10]
[419204565,1775017903215,-152.0,0.0003611,10]
[419204566,1775017903225,-5000.0,0.0003611,10]
[419204567,1775017903235,-5000.0,0.00036116,10]
[419204568,1775017903245,-1000.0,0.00036142,7]
[419204569,1775017903255,-500.0,0.00036151,30]
[419204570,1775017903265,-200.0,0.00036164,120]
[419204571,1775017903275,-1121.17,0.0003617,10]
[419204572,1775017903284,-5000.0,0.00036174,10]
[419204573,1775017903293,-5000.0,0.00036193,10]
[419204574,1775017903304,-993.10976,0.000362,30]
[419204575,1775017903313,-5000.0,0.00036206,10]
[419204576,1775017903323,-151.0,0.00036222,5]
[419204577,1775017903333,-1000.0,0.00036223,7]
[419204578,1775017903343,-1014.36,0.0003625,120]
[419204579,1775017903353,-1714.1,0.00036264,10]
[419204580,1775017903362,-150.0,0.00036281,10]
[419204581,1775017903372,-5000.0,0.00036291,10]
[419204582,1775017903381,-358.32,0.00036324,10]
[419204583,1775017903391,-1597.75,0.00036325,10]
[419204584,1775017903400,-5000.0,0.00036332,10]
[419204585,1775017903409,-613.56,0.00036346,10]
[419204586,1775017903419,-5000.0,0.00036356,10]
[419204587,1775017903428,-319.999827,0.00036356,7]
[419204588,1775017903438,-319.999827,0.00036356,7]
[419204589,1775017903447,-319.999827,0.00036356,7]
[419204590,1775017903457,-319.999827,0.00036356,7]
[419204591,1775017903467,-151.0,0.00036356,7]
[419204592,1775017903477,-151.0,0.00036356,7]
[419204593,1775017903487,-151.0,0.00036356,7]
[419204594,1775017903496,-151.0,0.00036356,7]
[419204595,1775017903506,-390.14726,0.00036356,7]
[419204596,1775017903515,-151.0,0.00036356,7]
[419204597,1775017903524,-390.14726,0.00036356,7]
[419204598,1775017903534,-151.0,0.00036356,7]
[419204599,1775017903543,-390.14726,0.00036356,7]
[419204600,1775017903552,-151.0,0.00036356,7]
[419204601,1775017903561,-390.14726,0.00036356,7]
[419204602,1775017903570,-152.754954,0.00036356,7]
[419204603,1775017903579,-151.0,0.00036356,7]
[419204604,1775017903588,-644.599907,0.00036356,7]
[419204605,1775017903597,-151.0,0.00036356,7]
[419204606,1775017903606,-151.0,0.00036356,7]
[419204607,1775017903616,-152.754954,0.00036356,7]
[419204608,1775017903626,-644.599907,0.00036356,7]
[419204609,1775017903635,-151.0,0.00036356,7]
[419204610,1775017903644,-281.768919,0.00036356,7]
[419204611,1775017903654,-152.754954,0.00036356,7]
[419204612,1775017903663,-644.599907,0.00036356,7]
[419204613,1775017903672,-282.98342,0.00036356,7]
[419204614,1775017903682,-152.754954,0.00036356,7]
[419204615,1775017903691,-644.599907,0.00036356,7]
[419204616,1775017903700,-256.203795,0.00036356,7]
[419204617,1775017903709,-583.094244,0.00036356,7]
[419204618,1775017903718,-252.213811,0.00036356,7]
[419204619,1775017903728,-1888.020243,0.00036356,7]
[419204620,1775017903737,-583.094244,0.00036356,7]
[419204621,1775017903746,-256.203795,0.00036356,7]
[419204622,1775017903756,-252.213811,0.00036356,7]
[419204623,1775017903766,-1888.020243,0.00036356,7]
[419204624,1775017903776,-583.094244,0.00036356,7]
[419204625,1775017903785,-252.213811,0.00036356,7]
[419204626,1775017903794,-256.203795,0.00036356,7]
[419204627,1775017903804,-1888.020243,0.00036356,7]
[419204628,1775017903814,-583.094244,0.00036356,7]
[419204629,1775017903823,-1214.826728,0.00036356,7]
[419204630,1775017903833,-252.213811,0.00036356,7]
[419204631,1775017903842,-256.203795,0.00036356,7]
[419204632,1775017903851,-1888.020243,0.00036356,7]
[419204633,1775017903861,-1214.826728,0.00036356,7]
[419204634,1775017903870,-1214.826728,0.00036356,7]
[419204635,1775017903879,-151.0,0.00036356,7]
[419204636,1775017903889,-1214.826728,0.00036356,7]
[419204637,1775017903900,-151.0,0.00036356,7]
[419204638,1775017903909,-151.0,0.00036356,7]
[419204639,1775017903918,-266.850709,0.00036356,7]
[419204640,1775017903927,-609.890694,0.00036356,7]
[419204641,1775017903936,-266.850709,0.00036356,7]
[419204642,1775017903946,-609.890694,0.00036356,7]
[419204643,1775017903955,-266.850709,0.00036356,7]
[419204644,1775017903964,-609.890694,0.00036356,7]
[419204645,1775017903974,-266.850709,0.00036356,7]
[419204646,1775017903984,-609.890694,0.00036356,7]
[419204647,1775017903994,-269.689,0.00036356,7]
[419204648,1775017904003,-269.689,0.00036356,7]
[419204649,1775017904013,-269.689,0.00036356,7]
[419204650,1775017904023,-151.0,0.00036356,7]
[419204651,1775017904032,-269.689,0.00036356,7]
[419204652,1775017904042,-3608.14,0.00036366,10]
[419204653,1775017904051,-153.0,0.00036388,30]
[419204654,1775017904062,-1076.0,0.00036388,30]
[419204655,1775017904075,-1049.0,0.00036388,30]
[419204656,1775017904084,-5000.0,0.00036394,10]
[419204657,1775017904094,-993.10976,0.000364,30]
[419204658,1775017904103,-500.0,0.00036407,10]
[419204659,1775017904112,-435.57567252,0.00036407,45]
[419204660,1775017904121,-560.22,0.00036407,120]
[419204661,1775017904130,-5000.0,0.00036408,10]
[419204662,1775017904139,-349.539048,0.00036408,7]
[419204663,1775017904148,-163.965869,0.00036408,7]
[419204664,1775017904157,-349.539048,0.00036408,7]
[419204665,1775017904167,-432.594449,0.00036408,7]
[419204666,1775017904176,-151.0,0.00036408,7]
[419204667,1775017904187,-163.965869,0.00036408,7]
[419204668,1775017904196,-349.539048,0.00036408,7]
[419204669,1775017904207,-432.594449,0.00036408,7]
[419204670,1775017904218,-310.869876,0.00036408,7]
[419204671,1775017904228,-151.0,0.00036408,7]
[419204672,1775017904239,-163.965869,0.00036408,7]
[419204673,1775017904249,-349.539048,0.00036408,7]
[419204674,1775017904259,-432.594449,0.00036408,7]
[419204675,1775017904268,-310.869876,0.00036408,7]
[419204676,1775017904277,-151.0,0.00036408,7]
[419204677,1775017904287,-163.965869,0.00036408,7]
[419204678,1775017904297,-310.869876,0.00036408,7]
[419204679,1775017904306,-432.594449,0.00036408,7]
[419204680,1775017904315,-173.356592,0.00036408,7]
[419204681,1775017904325,-173.235551,0.00036408,7]
[419204682,1775017904334,-310.869876,0.00036408,7]
[419204683,1775017904343,-173.235551,0.00036408,7]
[419204684,1775017904352,-151.0,0.00036408,7]
[419204685,1775017904361,-173.356592,0.00036408,7]
[419204686,1775017904370,-173.235551,0.00036408,7]
[419204687,1775017904380,-151.0,0.00036408,7]
[419204688,1775017904389,-173.235551,0.00036408,7]
[419204689,1775017904398,-173.356592,0.00036408,7]
[419204690,1775017904407,-173.356592,0.00036408,7]
[419204691,1775017904416,-201.137594,0.00036408,7]
[419204692,1775017904426,-201.137594,0.00036408,7]
[419204693,1775017904437,-201.137594,0.00036408,7]
[419204694,1775017904446,-3276.685982,0.00036408,7]
[419204695,1775017904456,-201.137594,0.00036408,7]
[419204696,1775017904467,-3276.685982,0.00036408,7]
[419204697,1775017904477,-3276.685982,0.00036408,7]
[419204698,1775017904486,-3276.685982,0.00036408,7]
[419204699,1775017904495,-5062.0,0.0003643,30]
[419204700,1775017904505,-1219.0,0.0003643,30]
[419204701,1775017904515,-571.0,0.0003643,30]
[419204702,1775017904525,-150.0,0.0003643,2]
[419204703,1775017904535,-374.4,0.00036433,10]
[419204704,1775017904544,-5000.0,0.0003644,10]
[419204705,1775017904553,-5000.0,0.00036455,10]
[419204706,1775017904562,-17809.4884,0.000365,97]
[419204707,1775017904571,-233.66,0.00036502,10]
[419204708,1775017904583,-1014.36,0.00036562,120]
[419204709,1775017904593,-5000.0,0.00036571,10]
[419204710,1775017904603,-5000.0,0.00036594,10]
[419204711,1775017904613,-993.10976,0.000366,30]
[419204712,1775017904622,-1263.0,0.00036637,2]
[419204713,1775017904632,-925.0,0.00036637,2]
[419204714,1775017904643,-1216.0,0.00036637,2]
[419204715,1775017904654,-504.0,0.00036646,22]
[419204716,1775017904665,-5000.0,0.00036663,10]
[419204717,1775017904675,-363.51560483,0.00036667,30]
[419204718,1775017904685,-500.0,0.0003669,120]
[419204719,1775017904694,-569.87,0.000367,20]
[419204720,1775017904704,-373.02,0.000367,20]
[419204721,1775017904714,-630.75,0.000367,20]
[419204722,1775017904723,-200.0,0.00036712,120]
[419204723,1775017904732,-676.62,0.00036717,10]
[419204724,1775017904741,-5000.0,0.00036778,10]
[419204725,1775017904750,-1000.0,0.0003678,2]
[419204726,1775017904760,-1000.0,0.0003678,2]
[419204727,1775017904771,-1000.0,0.0003678,2]
[419204728,1775017904781,-1000.0,0.0003678,2]
[419204729,1775017904790,-1000.0,0.0003678,2]
[419204730,1775017904799,-214.20886618,0.00036794,7]
[419204731,1775017904809,-993.10976,0.000368,30]
[419204732,1775017904820,-5000.0,0.00036804,10]
[419204733,1775017904831,-1000.0,0.00036861,2]
[419204734,1775017904840,-1000.0,0.00036861,2]
[419204735,1775017904850,-1000.0,0.00036861,2]
[419204736,1775017904859,-1000.0,0.00036861,2]
[419204737,1775017904868,-1000.0,0.00036861,2]
[419204738,1775017904879,-1014.36,0.00036875,120]
[419204739,1775017904888,-5000.0,0.00036882,10]
[419204740,1775017904897,-5000.0,0.00036885,10]
[419204741,1775017904907,-5000.0,0.00036932,10]
[419204742,1775017904916,-151.0,0.00036933,60]
[419204743,1775017904926,-5000.0,0.00036937,10]
[419204744,1775017904936,-906.4,0.0003694,10]
[419204745,1775017904946,-805.6,0.00036949,5]
[419204746,1775017904955,-3082.2118754,0.00036955,2]
[419204747,1775017904963,-500.0,0.0003696,120]
[419204748,1775017904972,-5000.0,0.0003697,10]
[419204749,1775017904981,-2500.0,0.00036976,10]
[419204750,1775017904990,-300.0,0.00036986,22]
[419204751,1775017905000,-500.0,0.00036986,120]
[419204752,1775017905012,-500.0,0.00036986,120]
[419204753,1775017905022,-250.0,0.00036996,43]
[419204754,1775017905031,-500.0,0.00036999,30]
[419204755,1775017905041,-500.0,0.00036999,30]
[419204756,1775017905050,-508.08439173,0.00036999,30]
[419204757,1775017905060,-27980.39,0.00037,2]
[419204758,1775017905069,-9127.68,0.00037,30]
[419204759,1775017905078,-7730.48,0.00037,30]
[419204760,1775017905087,-7126.81,0.00037,30]
[419204761,1775017905098,-200.0,0.00037,15]
[419204762,1775017905108,-1001.0,0.00037,7]
[419204763,1775017905118,-993.10976,0.00037,30]
[419204764,1775017905127,-1000.0,0.00037019,7]
[419204765,1775017905137,-1000.0,0.0003707,7]
[419204766,1775017905147,-1000.0,0.00037073,7]
[419204767,1775017905158,-700.0,0.00037082,21]
[419204768,1775017905167,-825.0,0.00037093,90]
[419204769,1775017905176,-978.0,0.00037133,5]
[419204770,1775017905185,-1187.0,0.00037133,5]
[419204771,1775017905195,-200.0,0.00037176,2]
[419204772,1775017905204,-200.0,0.00037176,2]
[419204773,1775017905213,-184.0,0.00037176,2]
[419204774,1775017905223,-152.0,0.00037179,11]
[419204775,1775017905232,-1014.36,0.00037187,120]
[419204776,1775017905243,-200.0,0.00037188,2]
[419204777,1775017905260,-287.0,0.00037188,2]
[419204778,1775017905274,-993.10976,0.000372,30]
[419204779,1775017905284,-690.74,0.00037221,2]
[419204780,1775017905293,-621.0,0.00037221,2]
[419204781,1775017905302,-204.24643178,0.00037222,5]
[419204782,1775017905311,-200.0,0.0003726,120]
[419204783,1775017905320,-204.08714195,0.0003726,14]
[419204784,1775017905330,-1000.0,0.00037295,7]
[419204785,1775017905339,-500.0,0.000373,2]
[419204786,1775017905349,-1200.0,0.00037356,21]
[419204787,1775017905358,-153.0,0.00037388,30]
[419204788,1775017905367,-1076.0,0.00037388,30]
[419204789,1775017905376,-1049.0,0.00037388,30]
[419204790,1775017905386,-569.87,0.000374,10]
[419204791,1775017905395,-373.02,0.000374,10]
[419204792,1775017905405,-630.75,0.000374,10]
[419204793,1775017905415,-993.10976,0.000374,30]
[419204794,1775017905424,-5062.0,0.0003743,30]
[419204795,1775017905434,-1219.0,0.0003743,30]
[419204796,1775017905444,-571.0,0.0003743,30]
[419204797,1775017905453,-250.0,0.00037471,45]
[419204798,1775017905463,-1014.36,0.000375,120]
[419204799,1775017905472,-1000.0,0.000375,120]
[419204800,1775017905483,-712.38805655,0.000375,120]
[419204801,1775017905492,-1000.0,0.00037575,7]
[419204802,1775017905503,-993.10976,0.000376,30]
[419204803,1775017905514,-569.25355257,0.00037665,2]
[419204804,1775017905525,-1000.0,0.00037718,7]
[419204805,1775017905535,-1000.0,0.00037755,7]
[419204806,1775017905545,-425.0,0.00037757,2]
[419204807,1775017905554,-22900.1761,0.000378,102]
[419204808,1775017905563,-993.10976,0.000378,30]
[419204809,1775017905572,-200.0,0.00037808,120]
[419204810,1775017905581,-1090.29780143,0.0003783,2]
[419204811,1775017905590,-504.0,0.00037885,23]